[Event "TePe Sigeman Co 2024"]
[Site "Malmo"]
[Date "2024.04.27"]
[Round "1.1"]
[White "Maurizzi, Marc`Andria"]
[Black "Keymer, Vincent"]
[Result "0-1"]
[ECO "D43"]
[WhiteElo "2605"]
[BlackElo "2726"]
[Annotator "TA"]
[PlyCount "58"]
[EventDate "2024.04.27"]
[EventType "tourn"]
[EventCountry "SWE"]
[SourceTitle "playchess.com"]
[Source "ChessBase"]
[SourceQuality "1"]
[TimeControl "40/5400+30:1800+30"]

{[%evp 13,58,0,-6,-14,-1,-12,-18,-22,-3,-17,-27,-15,-27,-76,0,-33,-53,-119,-111,-122,-132,-112,-108,-411,-428,-425,-411,-512,-500,-505,-502,-457,-399,-456,-443,-599,-596,-591,-586,-641,-630,-646,-639,-867,-877,-1357,-1338]} 1. d4 {[%emt 0:00:19]} Nf6 {[%emt 0:00:05]} 2. c4 {[%emt 0:00:03]} e6 {[%emt 0:00:04]} 3. Nf3 {[%emt 0:00:03]} d5 {[%emt 0:00:04]} 4. Nc3 {[%emt 0:00:04]} c6 {[%emt 0:03:26]} 5. Bg5 {[%emt 0:01:30]} h6 {[%emt 0:00:45]} 6. Bxf6 {[%emt 0:01:06]} Qxf6 {[%emt 0:00:05]} 7. a3 {[%emt 0:00:08]} dxc4 {[%emt 0:08:39]} 8. e3 {[%emt 0:00:44]} b5 {[%emt 0:06:05]} 9. Ne5 {[%emt 0:00:42]} Bd6 {[%emt 0:13:47]} 10. Ne4 {[%emt 0:00:04][%csl LRd6,LRf6] The position is equal.} (10. f4 {simplifies} O-O 11. Be2 Bxe5 12. fxe5 Qg5 13. Qd2) 10... Qe7 {[%emt 0:08:28]} (10... Qd8 {simplifies} 11. Nxd6+ Qxd6 12. b3 cxb3 13. Qxb3 Nd7) 11. Qh5 {[%emt 0:00:20]} (11. Nxd6+ {simplifies} Qxd6 12. b3 Nd7 13. Nxd7 Bxd7 14. bxc4 e5 15. Be2) 11... Bc7 {[%emt 0:08:43]} 12. f4 {[%emt 0:28:57]} Bb7 {[%emt 0:17:33]} 13. Nc5 {[%emt 0:15:39] [#] Prevents Na6.} (13. Be2 $11 {is more appropriate.}) 13... Bd6 {[%emt 0:11:13]} (13... Bxe5 $1 $17 14. fxe5 Na6 15. Nxb7 Qxb7) 14. Ne4 {[%emt 0:27:32] Excellent horsemanship.} O-O {[%emt 0:00:15]} 15. g4 {[%emt 0:01:37]} (15. Rg1 $15) 15... c5 $17 {[%emt 0:05:57]} 16. Bg2 {[%emt 0:03:12]} cxd4 {[%emt 0:00:37]} 17. g5 {[%emt 0:06:55] Threatens to win with Nxd6.} Bxe5 {[%emt 0:04:35]} (17... dxe3 $2 18. Nxd6 Bxg2 19. Rg1 $18) 18. gxh6 $2 {[%emt 0:02:57][%mdl 8192] [#] This move loses the game for White.} (18. fxe5 $17 d3 (18... dxe3 19. O-O-O $17) (18... Bxe4 19. Bxe4 Nd7 20. Bxa8 $11) 19. O-O) 18... Nd7 $1 $19 {[%emt 0:02:39]} 19. fxe5 {[%emt 0:07:09] And now hxg7 would win.} g6 {[%emt 0:00:05]} (19... dxe3 $2 {perishes.} 20. hxg7 f5 21. Qh8+ (21. gxf8=R+ Rxf8 22. Nf6+ Nxf6 $18) (21. gxf8=N Nxe5 22. Ng6 Nd3+ 23. Kf1 Qg7 $18) (21. gxf8=B Qf7 $18) (21. exf6 Nxf6 22. gxf8=Q+ Rxf8 $18) 21... Kf7 22. gxf8=B $18 (22. gxf8=Q+ Qxf8 23. Qh7+ Ke8 $18)) 20. Qh3 {[%emt 0:00:02]} Nxe5 {[%emt 0:00:54]} 21. O-O {[%emt 0:00:04]} Bxe4 {[%emt 0:03:35]} 22. Bxe4 {[%emt 0:00:00]} Qg5+ {[%emt 0:00:20]} 23. Kh1 {[%emt 0:00:45]} Rad8 {[%emt 0:00:04] Black is clearly winning.} (23... Qxe3 24. Qxe3 dxe3 25. Bxa8 Rxa8 26. Rae1 $15) 24. Rg1 {[%emt 0:01:29]} Qxe3 {[%emt 0:01:25]} 25. Qh4 {[%emt 0:00:02] [#] Strongly threatening Rae1.} Kh7 $1 {[%emt 0:00:56]} 26. Raf1 {[%emt 0:01:02]} Qxh6 {[%emt 0:02:16]} 27. Qe7 {[%emt 0:00:31]} Qg7 {[%emt 0:00:46]} 28. Rg5 {[%emt 0:00:31]} f5 {[%emt 0:00:13]} 29. Qxe6 {[%emt 0:00:07]} Rde8 {[%emt 0:00:29] Weighted Error Value: White=0.71/Black=0.09 (flawless) .  Loses game:     	White=1     	---        Mistake:       	White=2     	Black=1      Inaccurate:     	White=2     	---        OK:         	White=5     	Black=9      Best:        	---       	Black=5      Strong:       	---       	Black=1} 0-1

[Event "TePe Sigeman Co 2024"]
[Site "Malmo"]
[Date "2024.04.27"]
[Round "1.2"]
[White "Korobov, Anton"]
[Black "Abdusattorov, Nodirbek"]
[Result "1-0"]
[ECO "A22"]
[WhiteElo "2651"]
[BlackElo "2765"]
[Annotator "TA"]
[PlyCount "97"]
[EventDate "2024.04.27"]
[EventType "tourn"]
[EventCountry "SWE"]
[SourceTitle "playchess.com"]
[Source "ChessBase"]
[SourceQuality "1"]
[TimeControl "40/5400+30:1800+30"]

{[%evp 9,97,0,0,0,1,-7,0,-2,0,0,4,5,0,0,0,0,6,0,14,9,2,0,0,0,-2,-8,-2,-8,0,0,0,0,14,15,10,14,9,0,0,0,9,0,0,0,0,0,0,0,2,3,7,0,0,-18,-14,-23,0,0,0,0,125,119,139,120,141,12,12,13,89,91,230,232,287,309,835,827,826,820,781,427,489,491,625,600,603,603,762,732,706,684]} 1. c4 {[%emt 0:00:03]} e5 {[%emt 0:00:40]} 2. Nc3 {[%emt 0:00:10]} Bb4 {[%emt 0:00:24]} 3. Qb3 {[%emt 0:00:20]} a5 {[%emt 0:03:39]} 4. g3 {[%emt 0:02:38]} Nf6 {[%emt 0:01:42]} 5. Bg2 {[%emt 0:00:54]} O-O {[%emt 0:01:32]} 6. Nf3 {[%emt 0:00:31]} Nc6 {[%emt 0:05:16]} 7. O-O {[%emt 0:03:16]} Re8 {[%emt 0:05:42]} 8. d3 {[%emt 0:04:50][%cal Bd2d3,Bd3e4][%mdl 32] The position is equal.} Nd4 {[%emt 0:02:49]} 9. Nxd4 {[%emt 0:07:21]} exd4 {[%emt 0:00:18]} 10. Ne4 {[%emt 0:00:12]} Nxe4 {[%emt 0:08:39]} 11. dxe4 {[%emt 0:01:42]} Bc5 {[%emt 0:00:34]} 12. Qd3 {[%emt 0:07:13]} Qe7 {[%emt 0:08:04]} 13. b3 {[%emt 0:05:11]} d6 {[%emt 0:08:02]} 14. Bb2 {[%emt 0:04:43]} f5 {[%emt 0:00:06][%cal Rf5e4]} 15. Bxd4 {[%emt 0:02:43]} (15. exf5 Qxe2 16. Bd5+ Kf8 17. Qxe2 Rxe2 $19) 15... fxe4 {[%emt 0:00:11]} 16. Qc3 {[%emt 0:00:10]} b6 {[%emt 0:06:41]} 17. Rad1 {[%emt 0:06:30]} Bb7 {[%emt 0:02:12]} 18. e3 {[%emt 0:07:12]} h5 {[%emt 0:06:12][%cal Bh7h5,Bh5h4][%mdl 32]} 19. Qb2 {[%emt 0:01:00]} h4 {[%emt 0:03:02]} 20. Bc3 {[%emt 0:05:36]} c6 {[%emt 0:08:16]} 21. a3 {[%emt 0:02:26] b4 is the strong threat.} d5 $1 {[%emt 0:01:05]} 22. b4 {[%emt 0:00:23]} Bd6 {[%emt 0:01:06]} 23. cxd5 {[%emt 0:00:42]} cxd5 {[%emt 0:02:20]} 24. Rd2 {[%emt 0:01:11]} Rec8 {[%emt 0:02:53]} 25. Rfd1 {[%emt 0:09:05]} axb4 {[%emt 0:02:28]} 26. Bxb4 {[%emt 0:00:25]} Bxb4 {[%emt 0:00:11]} 27. axb4 {[%emt 0:00:31]} Rc4 {[%emt 0:00:48]} 28. Rd4 {[%emt 0:03:58]} Rac8 {[%emt 0:00:10]} 29. Rxc4 {[%emt 0:03:30]} dxc4 {[%emt 0:00:56]} 30. Qd4 {[%emt 0:00:57]} (30. Bh3 {simplifies} Rc7 31. Qd4 Qf6 32. Qxf6 gxf6 33. gxh4 Kg7 34. Bf5) 30... Qe6 {[%emt 0:06:27] Repels Bh3} 31. b5 {[%emt 0:02:43]} c3 {[%emt 0:00:42]} 32. Rc1 {[%emt 0:00:26]} (32. gxh4 Rc4 (32... c2 33. Rc1 $15) 33. Qd8+ Kh7 $17) 32... Qf6 {[%emt 0:03:01]} 33. Qd7 {[%emt 0:02:57]} (33. Bxe4 $2 Qxd4 34. exd4 Bxe4 $19) 33... Qf7 {[%emt 0:01:02]} 34. Qd4 {[%emt 0:00:36]} Rc5 {[%emt 0:03:44]} (34... Qf6 $11) 35. Qd8+ $16 {[%emt 0:01:26]} (35. Bxe4 $6 Bxe4 36. Qxe4 h3 $11) (35. gxh4 $6 Qd5 $11) 35... Qf8 {[%emt 0:00:13]} 36. Qxb6 {[%emt 0:01:20]} Qe7 {[%emt 0:00:48]} 37. Qa5 {[%emt 0:01:16]} (37. Bf1 $16) 37... Qd7 $11 {[%emt 0:02:06] Strongly threatening ...c2.} 38. Qa2+ {[%emt 0:01:20]} (38. gxh4 c2 (38... Qd2 39. Qa3 $11) 39. Qa1 Kh8 $19) (38. Rxc3 $2 Qd2 39. Rxc5 (39. Ra3 Qd1+ 40. Bf1 Rc1) 39... Qxa5 $19) 38... Kh8 {[%emt 0:01:40]} (38... Qd5 $1 $11 39. Qxd5+ Bxd5) 39. Bf1 $1 $16 {[%emt 0:00:59]} (39. gxh4 $2 c2 40. Qb2 Qxb5 $19 (40... Rxb5 $2 41. Qxc2 Qf5 42. Qc7 $18) (40... Qd1+ 41. Bf1 $17)) 39... Rc8 {[%emt 0:01:24] [#] Black cannot hold the game after this.} (39... Qd2 $16 40. Qxd2 cxd2) 40. Qb3 $1 $18 {[%emt 0:04:01]} (40. gxh4 c2 $11) 40... Qd2 {[%emt 0:02:38] [#]} 41. Rc2 {[%emt 0:30:26]} Qe1 {[%emt 0:09:45]} (41... Qd1 42. Rxc3 Qxb3 43. Rxb3 hxg3 44. hxg3 Kh7) 42. Qf7 {[%emt 0:00:00] White is clearly winning.} (42. gxh4 Qd1 43. Rxc3 Qg4+ 44. Bg2 Rxc3 45. Qxc3 Qd1+ 46. Bf1 Qg4+ 47. Kh1 Qf3+ 48. Kg1 Qg4+ 49. Bg2 (49. Kh1 Qf3+ 50. Kg1 Qg4+ $11) 49... Qd1+ 50. Bf1 Qg4+ $11) 42... Ba8 {[%emt 0:04:22]} 43. Qd7 {[%emt 0:00:00]} (43. gxh4 Qd1 $11) 43... Rf8 {[%emt 0:07:08]} 44. Qc7 {[%emt 0:00:00]} (44. gxh4 Qb1 45. Qg4 (45. Rxc3 $2 Qb2 $19) 45... Qb3 $16 (45... Qxc2 46. Qh5+ Kg8 47. Bc4+)) 44... Qd1 {[%emt 0:00:10]} 45. Qxc3 {[%emt 0:00:00]} (45. Rxc3 Kg8 46. b6 (46. gxh4 Bb7 $18) 46... Bd5) 45... Rd8 {[%emt 0:00:04]} 46. Rc1 {[%emt 0:00:00]} (46. gxh4 Qg4+ 47. Kh1 Qf3+ 48. Kg1 Qg4+ 49. Kh1 Qf3+ 50. Kg1 Qg4+ $11) 46... Qf3 {[%emt 0:00:01]} 47. Qb2 {[%emt 0:00:00]} ({Not} 47. gxh4 Qg4+ 48. Kh1 (48. Bg2 Rd1+ 49. Rxd1 Qxd1+ 50. Bf1 Qg4+ 51. Kh1 Qf3+ 52. Kg1 Qg4+ 53. Bg2 Qd1+ 54. Bf1 Qg4+ $11) 48... Qf3+ 49. Kg1 Qg4+ 50. Kh1 (50. Bg2 Rd1+ 51. Rxd1 Qxd1+ 52. Bf1 Qg4+ 53. Kh1 Qf3+ 54. Kg1 Qg4+ 55. Bg2 Qd1+ 56. Bf1 Qg4+ $11) 50... Qf3+ 51. Kg1 $11) 47... Bd5 {[%emt 0:00:30]} 48. b6 {[%emt 0:00:00]} Rf8 {[%emt 0:00:12]} 49. Rc7 {[%emt 0:00:00] Weighted Error Value: White=0.14 (very precise) /Black=0.27 (precise) .  Mistake:       	White=1     	Black=4      OK:         	White=18    	Black=17     Best:        	White=2     	---        Strong:       	White=2     	Black=1} 1-0

[Event "TePe Sigeman Co 2024"]
[Site "Malmo"]
[Date "2024.04.27"]
[Round "1.3"]
[White "Erigaisi Arjun"]
[Black "Ju, Wenjun"]
[Result "1-0"]
[ECO "D77"]
[WhiteElo "2756"]
[BlackElo "2559"]
[Annotator "TA"]
[PlyCount "59"]
[EventDate "2024.04.27"]
[EventType "tourn"]
[EventCountry "SWE"]
[SourceTitle "playchess.com"]
[Source "ChessBase"]
[SourceQuality "1"]
[TimeControl "40/5400+30:1800+30"]

{[%evp 14,59,38,22,20,19,11,0,25,0,0,0,0,0,0,0,0,0,19,0,23,35,61,51,63,33,198,209,130,137,177,141,140,139,124,125,158,161,147,155,271,264,286,265,318,307,405,394]} 1. Nf3 {[%emt 0:00:12]} d5 {[%emt 0:00:16]} 2. g3 {[%emt 0:00:08]} Nf6 {[%emt 0:02:42]} 3. Bg2 {[%emt 0:00:07]} g6 {[%emt 0:01:07]} 4. d4 {[%emt 0:00:07]} Bg7 {[%emt 0:00:32]} 5. c4 {[%emt 0:00:15]} dxc4 {[%emt 0:02:54]} 6. O-O {[%emt 0:01:16]} O-O {[%emt 0:00:05]} 7. Na3 {[%emt 0:00:06][%cal Bb1a3,Ba3c4,Bc4b6][%mdl 32]} c5 {[%emt 0:00:45]} 8. Nxc4 {[%emt 0:00:08]} Be6 {[%emt 0:02:26]} 9. Nfe5 {[%emt 0:00:14]} Qc8 {[%emt 0:02:18]} (9... Qxd4 10. Bxb7 Nbd7 11. Qxd4 cxd4 12. Bxa8 Rxa8 13. Rd1) 10. Bd2 {[%emt 0:00:09]} Bd5 {[%emt 0:06:44] The position is equal.} 11. Rc1 {[%emt 0:00:34]} Bxg2 {[%emt 0:00:27]} 12. Kxg2 {[%emt 0:00:08]} cxd4 {[%emt 0:00:04]} 13. Nb6 $1 {[%emt 0:15:07]} Qe6 {[%emt 0:02:05]} 14. Nxa8 {[%emt 0:00:08] [#] Threatens to win with f4.} Qxe5 {[%emt 0:00:02]} 15. Qb3 {[%emt 0:07:09]} Qxe2 {[%emt 0:12:30]} 16. Bg5 {[%emt 0:11:28]} b6 {[%emt 0:35:40]} 17. Nc7 {[%emt 0:15:40] Really sharp!} Nbd7 {[%emt 0:02:34]} 18. Rfe1 {[%emt 0:01:22]} Qg4 {[%emt 0:00:57]} 19. Bxf6 {[%emt 0:01:24]} (19. Qb5 {feels hotter.} Nc5 20. b4 a6 21. Qc4) 19... exf6 {[%emt 0:06:40] [#]} (19... Bxf6 $14 20. Qb5 Nc5) 20. h3 $1 $18 {[%emt 0:10:09]} Qg5 {[%emt 0:06:52]} 21. Qb5 {[%emt 0:02:16] White is more active. Black is weak on the light squares} Rd8 {[%emt 0:08:02]} 22. Re8+ {[%emt 0:00:51]} Rxe8 {[%emt 0:00:05]} 23. Qxg5 {[%emt 0:00:05]} (23. Qxd7 Rf8 (23... Qxc1 24. Nxe8 Qc5 25. b4 $17) 24. Re1 f5 $17) 23... fxg5 {[%emt 0:00:03]} 24. Nxe8 {[%emt 0:00:05]} Nc5 {[%emt 0:00:43]} 25. Nxg7 {[%emt 0:01:49]} Kxg7 $16 {[%emt 0:00:04] KR-KN} 26. b4 {[%emt 0:00:05]} Ne6 {[%emt 0:00:05]} (26... Na4 $16 {might work better.}) 27. Rc8 $18 {[%emt 0:00:06]} Kf6 {[%emt 0:00:41]} 28. Kf3 {[%emt 0:01:51]} (28. Ra8 d3 29. Kf1 (29. Rxa7 Nd4 $11) 29... Nd4) 28... Ke5 {[%emt 0:03:21]} 29. Ra8 {[%emt 0:00:12]} Kd5 {[%emt 0:01:06]} 30. Rxa7 {[%emt 0:00:07] Weighted Error Value: White=0.07 (flawless) /Black=0.34.  Loses game:     	---       	Black=1      Mistake:       	---       	Black=1      Inaccurate:     	White=1     	Black=2      OK:         	White=13    	Black=5      Best:        	---       	Black=1      Strong:       	White=2     	---} 1-0

[Event "TePe Sigeman Co 2024"]
[Site "Malmo"]
[Date "2024.04.27"]
[Round "1.4"]
[White "Svidler, Peter"]
[Black "Grandelius, Nils"]
[Result "1/2-1/2"]
[ECO "C55"]
[WhiteElo "2689"]
[BlackElo "2664"]
[Annotator "TA"]
[PlyCount "81"]
[EventDate "2024.04.27"]
[EventType "tourn"]
[EventCountry "SWE"]
[SourceTitle "playchess.com"]
[Source "ChessBase"]
[SourceQuality "1"]
[TimeControl "40/5400+30:1800+30"]

{[%evp 10,81,11,13,22,14,14,16,9,6,13,12,16,0,0,-25,-16,-22,-8,-25,-28,-14,-25,-21,-19,-16,-8,-8,0,-6,-8,-1,-6,-54,-14,-26,-28,-37,-16,-48,-47,-42,-33,-40,-47,-67,-48,-62,-61,-45,-12,-15,-15,-38,-27,-45,-33,-40,0,-26,-16,-21,-39,-45,0,-30,-41,-37,-45,-41,-43,-47,0,0]} 1. e4 {[%emt 0:00:03]} e5 {[%emt 0:00:36]} 2. Nf3 {[%emt 0:00:25]} Nc6 {[%emt 0:00:09]} 3. Bc4 {[%emt 0:03:27]} Nf6 {[%emt 0:00:43]} 4. d3 {[%emt 0:00:05]} h6 {[%emt 0:01:41]} 5. a4 {[%emt 0:15:04]} Bc5 {[%emt 0:01:48]} 6. a5 {[%emt 0:04:11] C55: Two Knights: 4 d3, 4 d4 exd4 5 e5 and Max Lange Attack.} a6 {[%emt 0:01:00]} 7. c3 {[%emt 0:03:44]} O-O {[%emt 0:01:08]} 8. O-O {[%emt 0:01:21]} Ba7 {[%emt 0:01:25]} 9. Re1 {[%emt 0:05:33]} d6 {[%emt 0:10:43]} 10. h3 {[%emt 0:02:39]} Kh8 {[%emt 0:22:16]} 11. Nbd2 {[%emt 0:09:16]} Nh7 $146 {[%emt 0:02:33]} ({Predecessor:} 11... Ng8 12. Nf1 f5 13. exf5 Bxf5 14. Ng3 Bd7 15. Be3 Bxe3 16. Rxe3 Nge7 17. Qb3 Rb8 {1-0 Husek,M (2182)-Benes,M (2107) Skalica op 2019 (3)}) 12. Bb3 {[%emt 0:08:52]} Ng5 {[%emt 0:14:53]} 13. Nf1 {[%emt 0:13:10]} Nxf3+ {[%emt 0:02:20]} 14. Qxf3 {[%emt 0:00:10]} f5 {[%emt 0:01:24]} 15. Be3 {[%emt 0:00:42]} fxe4 {[%emt 0:03:41]} 16. Qxe4 {[%emt 0:00:33]} Bf5 {[%emt 0:02:28]} 17. Qc4 {[%emt 0:01:11]} Bh7 {[%emt 0:05:49]} 18. Bxa7 {[%emt 0:12:59]} Rxa7 {[%emt 0:00:38]} 19. Ng3 {[%emt 0:00:09]} Ra8 {[%emt 0:05:46]} 20. Bc2 {[%emt 0:06:09]} Rf4 {[%emt 0:04:11]} 21. Qb3 {[%emt 0:01:12]} (21. Qa2 $11) 21... Rb8 {[%emt 0:00:33]} 22. d4 {[%emt 0:03:47]} Bg8 {[%emt 0:05:11]} 23. d5 {[%emt 0:01:21]} b6 {[%emt 0:01:53]} 24. axb6 {[%emt 0:02:46]} Rxb6 {[%emt 0:00:09]} 25. Qa2 {[%emt 0:00:01]} Ne7 {[%emt 0:01:37]} 26. c4 {[%emt 0:00:55]} c6 {[%emt 0:01:35]} 27. Be4 {[%emt 0:00:17]} cxd5 {[%emt 0:00:08]} 28. cxd5 {[%emt 0:00:04]} Qb8 $1 {[%emt 0:05:07]} 29. Re2 {[%emt 0:00:55]} Qb7 {[%emt 0:00:08]} 30. Rd1 {[%emt 0:01:08]} Rf8 {[%emt 0:02:14]} 31. Red2 {[%emt 0:00:43]} Rb3 {[%emt 0:00:40]} 32. Nf1 {[%emt 0:01:54]} Qb6 {[%emt 0:00:54]} 33. Kh2 {[%emt 0:00:45]} Rb5 {[%emt 0:00:25]} (33... Rxf2 $2 {loses.} 34. Rxf2 Re3 35. Bf3 $18 (35. Nxe3 Qxe3 36. Rf8 Qxe4 $18)) 34. f3 {[%emt 0:00:34]} (34. Ne3 $5) 34... Rb8 {[%emt 0:00:30]} 35. Rc2 {[%emt 0:01:22]} Ra5 {[%emt 0:00:42]} ({Reject} 35... Rxb2 36. Rxb2 Qxb2 37. Qxa6 $14) 36. Qc4 {[%emt 0:00:02]} Rc5 {[%emt 0:00:28]} 37. Qe2 {[%emt 0:00:03]} Nxd5 {[%emt 0:00:58]} 38. Rxc5 {[%emt 0:01:19]} Qxc5 {[%emt 0:00:30]} 39. Bxd5 {[%emt 0:00:12]} Bxd5 {[%emt 0:00:04]} 40. Qd2 {[%emt 0:00:09]} Bf7 {[%emt 0:00:51]} (40... Rb5 $15) 41. Qxd6 {[%emt 0:01:26]} 1/2-1/2

[Event "TePe Sigeman Co 2024"]
[Site "Malmo"]
[Date "2024.04.28"]
[Round "2.1"]
[White "Maurizzi, Marc`Andria"]
[Black "Korobov, Anton"]
[Result "0-1"]
[ECO "E04"]
[WhiteElo "2605"]
[BlackElo "2651"]
[Annotator "TA"]
[PlyCount "138"]
[EventDate "2024.04.27"]
[EventType "tourn"]
[EventCountry "SWE"]
[SourceTitle "playchess.com"]
[Source "ChessBase"]
[SourceQuality "1"]
[TimeControl "40/5400+30:1800+30"]

{[%evp 14,138,10,0,0,0,0,0,8,0,0,-24,-21,-15,-16,-43,-27,-37,-35,-24,0,0,0,0,0,0,0,0,9,0,0,-62,-58,-66,0,0,0,-63,-54,-95,-93,-72,-45,-103,-20,-125,-59,-106,-66,-62,-33,-71,-70,-90,-93,-85,-91,-124,-116,-173,-165,-214,-200,-215,-210,-235,-229,-201,-236,-236,-237,-235,-247,-468,-439,-435,-439,-464,-463,-458,-437,-458,-289,-289,-286,-398,-371,-339,-220,-640,-535,-504,-284,-324,-323,-320,-311,-297,-307,-315,-337,-397,-393,-366,-309,-465,-489,-525,-525,-524,-468,-518,-560,-516,-433,-803,-802,-803,-803,-757,-756,-1280,-733,-29959,-29959,-29973,-29974]} 1. d4 {[%emt 0:00:19]} Nf6 {[%emt 0:00:10]} 2. c4 {[%emt 0:00:02]} e6 {[%emt 0:00:12]} 3. g3 {[%emt 0:00:34]} d5 {[%emt 0:00:26]} 4. Bg2 {[%emt 0:00:29]} dxc4 {[%emt 0:00:19]} 5. Nf3 {[%emt 0:01:33]} a6 {[%emt 0:00:30]} 6. O-O {[%emt 0:02:11]} Nc6 {[%emt 0:00:35]} 7. a4 {[%emt 0:07:56]} Rb8 {[%emt 0:05:45]} 8. a5 {[%emt 0:01:06]} Bb4 {[%emt 0:09:35][%cal Oe8g8]} 9. Na3 {[%emt 0:03:22]} Bxa5 {[%emt 0:05:23]} 10. Nxc4 {[%emt 0:06:01]} Bb4 {[%emt 0:00:21] The position is equal.} 11. Nfe5 {[%emt 0:06:09]} Nxe5 {[%emt 0:02:02]} 12. dxe5 {[%emt 0:00:44]} (12. Nxe5 $5 O-O 13. Rxa6 $11) 12... Qxd1 {[%emt 0:00:51]} 13. Rxd1 {[%emt 0:00:07] [#]} Nd5 {[%emt 0:01:43]} 14. Ne3 {[%emt 0:10:00]} (14. Bd2 Bxd2) 14... Nb6 {[%emt 0:05:30]} 15. Bd2 {[%emt 0:09:31]} Bxd2 {[%emt 0:00:58]} 16. Rxd2 {[%emt 0:00:01]} Ke7 {[%emt 0:00:36]} 17. Rc1 $1 {[%emt 0:03:14]} c6 {[%emt 0:00:42]} 18. Rd3 {[%emt 0:01:20]} Bd7 {[%emt 0:08:10]} 19. Rb3 {[%emt 0:08:14]} Na4 {[%emt 0:04:42]} 20. Ra3 {[%emt 0:11:28]} (20. Rb4 b5 21. b3 Nb6) 20... b5 {[%emt 0:03:13]} (20... Nxb2 $2 21. Rb1 $18) 21. Ra2 {[%emt 0:06:18][%cal Ob2b3]} (21. Bxc6 $2 Rhc8 (21... Nxb2 22. Bxd7 Kxd7 23. Rc2 $14) 22. b3 Nb6 (22... Rxc6 $2 23. Rxc6 Bxc6 24. bxa4 $19) (22... Bxc6 $2 23. bxa4 b4 24. Rb3 $19) 23. Rxa6 Bxc6 $19 (23... Rxc6 $2 24. Rxc6 Bxc6 25. Nc2 $19)) 21... Ra8 {[%emt 0:04:26]} 22. Nc2 {[%emt 0:09:59]} (22. Bxc6 Rhc8 23. b3 Rxc6 $17) (22. Nc4 $11) 22... Ra7 $1 $15 {[%emt 0:02:20]} 23. Ne1 {[%emt 0:00:50][%cal Ob2b3]} Rc8 {[%emt 0:02:33]} (23... a5 $15) 24. b3 $11 {[%emt 0:02:11]} Nb6 {[%emt 0:00:22]} 25. Nd3 {[%emt 0:00:01]} ({Better is} 25. Rca1 $11) 25... a5 $15 {[%emt 0:01:31]} 26. Be4 {[%emt 0:01:32][%cal Od3c5]} a4 {[%emt 0:03:20]} 27. f4 {[%emt 0:00:54]} a3 {[%emt 0:09:17]} 28. b4 {[%emt 0:00:47]} (28. Rca1 $15) 28... Ra4 {[%emt 0:03:28]} (28... Nd5 $17 {White should prevent ...Rca8.} 29. Bf3 f5) 29. Kf2 {[%emt 0:03:31]} (29. Nc5 $1 $11 Rxb4 30. Rxa3) 29... Nc4 {[%emt 0:00:54]} ({Black should play} 29... Rca8 $1 $17 30. Rb1 h5) 30. Rb1 {[%emt 0:01:03]} (30. Nc5 $15 Rxb4 31. Bd3) 30... h6 {[%emt 0:02:26]} 31. Nc5 {[%emt 0:00:25]} Ra7 $36 {[%emt 0:00:01][%mdl 2048] Black is pushing.} 32. Rb3 {[%emt 0:02:16]} Rca8 $1 {[%emt 0:00:58] Black keeps a firm grip on the game.} 33. Ke1 {[%emt 0:00:04]} f6 {[%emt 0:00:42]} 34. exf6+ {[%emt 0:00:02]} gxf6 {[%emt 0:00:06]} 35. Bd3 {[%emt 0:00:13]} Nb6 {[%emt 0:01:24]} 36. Bc2 {[%emt 0:01:16]} (36. Bg6 $17 {was necessary.}) 36... Be8 $19 {[%emt 0:01:29]} 37. Re3 {[%emt 0:00:18] [#]} (37. Be4 $142) 37... Nd5 $1 {[%emt 0:01:26][%csl LRb4,LRe3]} 38. Rxe6+ {[%emt 0:00:17] [#]} Kf8 $1 {[%emt 0:00:02]} 39. Bb3 {[%emt 0:00:18]} Nxb4 {[%emt 0:00:49]} 40. Ra1 {[%emt 0:00:05]} Bf7 {[%emt 0:01:27]} 41. Rxf6 {[%emt 0:33:26][%cal Oe1d2]} Kg7 {[%emt 0:30:33]} 42. Rxf7+ {[%emt 0:00:11]} Rxf7 {[%emt 0:00:04]} 43. Bxf7 {[%emt 0:00:05]} (43. Kd2 Re7 44. e4) 43... Nc2+ {[%emt 0:00:23]} (43... Kxf7 44. Kd2 $15) 44. Kd2 {[%emt 0:00:01]} Nxa1 {[%emt 0:00:07][%mdl 4096] Endgame. KRN-KBN} 45. Ba2 {[%emt 0:00:02]} b4 {[%emt 0:00:14]} 46. Kc1 {[%emt 0:00:00] [#]} b3 $1 {[%emt 0:10:15]} 47. Kb1 {[%emt 0:01:26]} Nc2 {[%emt 0:02:24]} ({But not} 47... bxa2+ 48. Kxa1 Rb8 (48... Ra5 $2 49. Ne6+ Kf6 50. Nd4 $19) 49. e4 $19) 48. Bxb3 {[%emt 0:00:54]} Nb4 {[%emt 0:01:08]} ({Resist} 48... Nd4 49. e4 $19) 49. e4 {[%emt 0:00:00]} a2+ {[%emt 0:00:00]} 50. Ka1 {[%emt 0:00:00]} Ra5 {[%emt 0:00:00]} 51. Ne6+ {[%emt 0:00:00]} (51. Nb7 Ra7 (51... Ra3 $2 52. Nc5 $19) 52. Nc5) 51... Kh8 {[%emt 0:00:00]} 52. f5 {[%emt 0:00:00]} Re5 {[%emt 0:00:00]} 53. f6 {[%emt 0:00:00] f7 would kill now.} Rxe4 {[%emt 0:00:00]} 54. Bxa2 {[%emt 0:00:00]} Re1+ {[%emt 0:00:00]} 55. Kb2 {[%emt 0:00:00]} Kg8 {[%emt 0:00:00]} 56. Bc4 {[%emt 0:00:00] Prevents Re2+.} Kf7 {[%emt 0:00:00][%csl LRe6,LRf6]} 57. Kb3 {[%emt 0:00:00]} Rb1+ {[%emt 0:00:00]} 58. Kc3 {[%emt 0:00:00]} Kxf6 {[%emt 0:00:00]} 59. Nf4 {[%emt 0:00:00]} (59. Nd4 $142) 59... Ke5 {[%emt 0:00:00]} 60. Ng6+ {[%emt 0:00:00]} Ke4 {[%emt 0:00:00]} 61. Ne7 {[%emt 0:00:00]} c5 {[%emt 0:00:00]} 62. Bf7 {[%emt 0:00:00] Strongly threatening Bg6+.} Rc1+ {[%emt 0:00:00]} 63. Kb3 {[%emt 0:00:00]} Nd3 {[%emt 0:00:00]} 64. Bg6+ {[%emt 0:00:00]} (64. Bg8 $142) 64... Ke3 {[%emt 0:00:00] ...c4+ is the strong threat.} 65. Nf5+ {[%emt 0:00:00]} Kd2 {[%emt 0:00:00] And now ...c4+ would win.} 66. Nd6 {[%emt 0:00:00]} Rb1+ {[%emt 0:00:00]} 67. Ka2 {[%emt 0:00:00]} Rb8 {[%emt 0:00:00] ( -> ...Kc2)} 68. Ka3 {[%emt 0:00:00]} Kc3 {[%emt 0:01:03][%cal Rb8a8]} 69. Ka4 {[%emt 0:00:00]} Nb2+ {[%emt 0:00:42] Weighted Error Value: White=0.38/Black=0.27 (precise) .  Mistake:       	White=11    	Black=3      Inaccurate:     	White=4     	Black=4      OK:         	White=19    	Black=25     Best:        	White=5     	Black=6      Strong:       	White=1     	Black=3} 0-1